[Event "*** Titled Tuesday Blitz"]
[Site "Chess.com"]
[Date "2019.03.05"]
[Round "4"]
[White "quesfr"]
[Black "mjray79"]
[Result "1-0"]
[WhiteElo "2230"]
[BlackElo "2114"]
[TimeControl "180+2"]
[EndTime "13:57:09 PST"]
[Termination "quesfr won by resignation"]

1. e4 {[%clk 0:03:01.9]} 1... e5 {[%clk 0:02:59]} 2. Nf3 {[%clk 0:03:02.1]} 2...
Nc6 {[%clk 0:02:59.1]} 3. Nc3 {[%clk 0:03:03.1]} 3... Nf6 {[%clk 0:02:56.3]} 4.
d4 {[%clk 0:03:04]} 4... exd4 {[%clk 0:02:51.8]} 5. Nxd4 {[%clk 0:03:05.9]} 5...
Bb4 {[%clk 0:02:49.7]} 6. Nxc6 {[%clk 0:03:06.8]} 6... dxc6 {[%clk 0:02:48.7]}
7. Qxd8+ {[%clk 0:03:03.8]} 7... Kxd8 {[%clk 0:02:48.7]} 8. Bd2 {[%clk
0:02:57.9]} 8... Ke7 {[%clk 0:02:20.6]} 9. f3 {[%clk 0:02:31.4]} 9... Rd8 {[%clk
0:02:18.9]} 10. Bd3 {[%clk 0:02:02.8]} 10... Be6 {[%clk 0:02:13.8]} 11. Ke2
{[%clk 0:01:59.1]} 11... c5 {[%clk 0:02:12.9]} 12. b3 {[%clk 0:01:49.6]} 12...
a6 {[%clk 0:02:01.7]} 13. a3 {[%clk 0:01:47.9]} 13... Bxc3 {[%clk 0:01:56.4]}
14. Bxc3 {[%clk 0:01:48.9]} 14... b5 {[%clk 0:01:57.8]} 15. Ke3 {[%clk
0:01:31.3]} 15... Kf8 {[%clk 0:01:45]} 16. Be2 {[%clk 0:01:11.7]} 16... Re8
{[%clk 0:01:44.1]} 17. Ba5 {[%clk 0:01:03.8]} 17... Bd7 {[%clk 0:01:37.1]} 18.
Kf2 {[%clk 0:01:00.1]} 18... Rac8 {[%clk 0:01:29.7]} 19. Rhd1 {[%clk 0:00:53.8]}
19... Bc6 {[%clk 0:01:29.5]} 20. Bc3 {[%clk 0:00:44.3]} 20... Bxe4 {[%clk
0:01:01.8]} 21. Bxf6 {[%clk 0:00:43]} 21... Bxc2 {[%clk 0:01:02.5]} 22. Bc3
{[%clk 0:00:12.5]} 22... Bxd1 {[%clk 0:00:57.3]} 23. Rxd1 {[%clk 0:00:13.9]}
23... Rcd8 {[%clk 0:00:57]} 24. Rxd8 {[%clk 0:00:14.3]} 24... Rxd8 {[%clk
0:00:57.5]} 25. Ba5 {[%clk 0:00:15.2]} 25... Rd7 {[%clk 0:00:56.2]} 26. a4
{[%clk 0:00:14.8]} 26... c6 {[%clk 0:00:56]} 27. Bb6 {[%clk 0:00:15.1]} 27...
Rd5 {[%clk 0:00:50.6]} 28. a5 {[%clk 0:00:12.5]} 28... Ke7 {[%clk 0:00:44.7]}
29. f4 {[%clk 0:00:13.8]} 29... Kd6 {[%clk 0:00:44.1]} 30. Ke3 {[%clk 0:00:14]}
30... Rd4 {[%clk 0:00:41.2]} 31. Bf3 {[%clk 0:00:11.5]} 31... Rb4 {[%clk
0:00:40.3]} 32. Bd1 {[%clk 0:00:11.6]} 32... c4 {[%clk 0:00:29.1]} 33. bxc4
{[%clk 0:00:12]} 33... Rxc4 {[%clk 0:00:29.7]} 34. Bd4 {[%clk 0:00:12.5]} 34...
f6 {[%clk 0:00:27.7]} 35. Bb2 {[%clk 0:00:12]} 35... Ra4 {[%clk 0:00:26.4]} 36.
Bxa4 {[%clk 0:00:12.4]} 36... bxa4 {[%clk 0:00:26.9]} 37. Kd4 {[%clk 0:00:13.7]}
37... c5+ {[%clk 0:00:23.3]} 38. Kc4 {[%clk 0:00:14.8]} 38... Kc6 {[%clk
0:00:24.2]} 39. Ba3 {[%clk 0:00:15.4]} 39... g5 {[%clk 0:00:20.9]} 40. fxg5
{[%clk 0:00:15.7]} 40... fxg5 {[%clk 0:00:21.2]} 41. Bxc5 {[%clk 0:00:16.8]}
41... h5 {[%clk 0:00:21.8]} 42. Bb4 {[%clk 0:00:15.5]} 42... g4 {[%clk
0:00:21.8]} 43. g3 {[%clk 0:00:15.7]} 43... Kd7 {[%clk 0:00:21]} 44. Kd5 {[%clk
0:00:16.8]} 44... Ke8 {[%clk 0:00:21.2]} 45. Ke6 {[%clk 0:00:17.6]} 45... Kd8
{[%clk 0:00:20.4]} 46. Kd6 {[%clk 0:00:18.3]} 46... Ke8 {[%clk 0:00:21.1]} 47.
Kc6 {[%clk 0:00:19.3]} 47... Kf7 {[%clk 0:00:21.5]} 48. Kb6 {[%clk 0:00:20.6]}
48... Kg6 {[%clk 0:00:22.4]} 49. Kxa6 {[%clk 0:00:21.7]} 1-0

[Event "*** Titled Tuesday Blitz"]
[Site "Chess.com"]
[Date "2019.03.05"]
[Round "4"]
[White "Vuk2000"]
[Black "Ainahia"]
[Result "1-0"]
[WhiteElo "2745"]
[BlackElo "2566"]
[TimeControl "180+2"]
[EndTime "13:57:13 PST"]
[Termination "Vuk2000 won on time"]

1. d4 {[%clk 0:03:01.9]} 1... e6 {[%clk 0:02:59.6]} 2. Nf3 {[%clk 0:03:02.5]}
2... Nf6 {[%clk 0:02:58.9]} 3. Bg5 {[%clk 0:03:03]} 3... h6 {[%clk 0:02:57.9]}
4. Bxf6 {[%clk 0:03:02.8]} 4... Qxf6 {[%clk 0:02:58.3]} 5. e4 {[%clk 0:03:04.5]}
5... d6 {[%clk 0:02:59.5]} 6. Nc3 {[%clk 0:03:00.9]} 6... g6 {[%clk 0:02:57.4]}
7. Qd2 {[%clk 0:03:01.1]} 7... Bg7 {[%clk 0:02:58.5]} 8. Bd3 {[%clk 0:03:02.1]}
8... Qe7 {[%clk 0:02:57.9]} 9. h4 {[%clk 0:03:03.4]} 9... Nc6 {[%clk 0:02:49.3]}
10. Ne2 {[%clk 0:02:56.9]} 10... Bd7 {[%clk 0:02:46.1]} 11. c3 {[%clk 0:02:56]}
11... O-O-O {[%clk 0:02:40.9]} 12. a4 {[%clk 0:02:55.5]} 12... f5 {[%clk
0:02:35.3]} 13. a5 {[%clk 0:02:47.7]} 13... fxe4 {[%clk 0:02:32.6]} 14. Bxe4
{[%clk 0:02:48.7]} 14... d5 {[%clk 0:02:34]} 15. Bxg6 {[%clk 0:02:47.4]} 15...
e5 {[%clk 0:02:35.6]} 16. dxe5 {[%clk 0:02:45.7]} 16... Nxe5 {[%clk 0:02:37.5]}
17. Nxe5 {[%clk 0:02:46.3]} 17... Qxe5 {[%clk 0:02:33.6]} 18. Qd4 {[%clk
0:02:34.4]} 18... Qxd4 {[%clk 0:01:59]} 19. Nxd4 {[%clk 0:02:35.2]} 19... Rhf8
{[%clk 0:01:44.2]} 20. f3 {[%clk 0:02:27.7]} 20... c5 {[%clk 0:01:42]} 21. Ne2
{[%clk 0:02:22.4]} 21... Bb5 {[%clk 0:01:33.6]} 22. Ng3 {[%clk 0:01:55.4]} 22...
d4 {[%clk 0:01:20.8]} 23. Ne4 {[%clk 0:01:46.9]} 23... Bc6 {[%clk 0:00:59]} 24.
Rc1 {[%clk 0:01:43.3]} 24... b6 {[%clk 0:00:57]} 25. axb6 {[%clk 0:01:31.1]}
25... axb6 {[%clk 0:00:58.9]} 26. Kf2 {[%clk 0:01:26.7]} 26... dxc3 {[%clk
0:00:44.9]} 27. bxc3 {[%clk 0:01:19.5]} 27... Bxe4 {[%clk 0:00:45.4]} 28. Bxe4
{[%clk 0:01:21.4]} 28... Rd2+ {[%clk 0:00:46.5]} 29. Kg3 {[%clk 0:01:19.1]}
29... Be5+ {[%clk 0:00:46.9]} 30. Kh3 {[%clk 0:01:19.5]} 30... Rg8 {[%clk
0:00:34.8]} 31. g4 {[%clk 0:01:20.5]} 31... Rgd8 {[%clk 0:00:30.8]} 32. c4
{[%clk 0:01:20]} 32... Rf2 {[%clk 0:00:25.6]} 33. g5 {[%clk 0:01:12.8]} 33... h5
{[%clk 0:00:25.4]} 34. Rc2 {[%clk 0:01:08.5]} 34... Rxc2 {[%clk 0:00:14.9]} 35.
Bxc2 {[%clk 0:01:10.4]} 35... Rd2 {[%clk 0:00:09.1]} 36. Bg6 {[%clk 0:01:10]}
36... b5 {[%clk 0:00:03.9]} 37. cxb5 {[%clk 0:01:07.8]} 37... c4 {[%clk
0:00:05.8]} 38. Bxh5 {[%clk 0:01:07.4]} 38... c3 {[%clk 0:00:07.1]} 39. Rc1
{[%clk 0:00:51]} 39... Kc7 {[%clk 0:00:06.4]} 40. Kg4 {[%clk 0:00:49.4]} 40...
Kb6 {[%clk 0:00:07.1]} 41. f4 {[%clk 0:00:47.7]} 41... Rd4 {[%clk 0:00:07.7]}
42. Kf5 {[%clk 0:00:39.7]} 42... Bxf4 {[%clk 0:00:07.9]} 43. Rxc3 {[%clk
0:00:41]} 43... Bd2 {[%clk 0:00:07.4]} 44. Rh3 {[%clk 0:00:32.1]} 44... Be1
{[%clk 0:00:07.8]} 45. g6 {[%clk 0:00:30.8]} 45... Rd5+ {[%clk 0:00:06.2]} 46.
Ke4 {[%clk 0:00:28.2]} 1-0

[Event "*** Titled Tuesday Blitz"]
[Site "Chess.com"]
[Date "2019.03.05"]
[Round "4"]
[White "x-6099009240"]
[Black "chessmaxusa"]
[Result "0-1"]
[WhiteElo "2274"]
[BlackElo "2520"]
[TimeControl "180+2"]
[EndTime "13:57:14 PST"]
[Termination "chessmaxusa won on time"]

1. e4 {[%clk 0:03:01.9]} 1... c6 {[%clk 0:03:01.2]} 2. d4 {[%clk 0:03:02.3]}
2... d5 {[%clk 0:03:03.1]} 3. Nc3 {[%clk 0:03:03.8]} 3... dxe4 {[%clk
0:03:04.1]} 4. Nxe4 {[%clk 0:03:05.7]} 4... Bf5 {[%clk 0:03:05.4]} 5. Ng3 {[%clk
0:03:07.3]} 5... Bg6 {[%clk 0:03:07]} 6. Nh3 {[%clk 0:03:09.2]} 6... Nd7 {[%clk
0:03:07.4]} 7. Bc4 {[%clk 0:03:08.5]} 7... e6 {[%clk 0:03:07]} 8. O-O {[%clk
0:03:08.6]} 8... Ngf6 {[%clk 0:03:08.2]} 9. f4 {[%clk 0:03:08.7]} 9... Ne4
{[%clk 0:03:03]} 10. f5 {[%clk 0:02:59.7]} 10... Nxg3 {[%clk 0:02:59.4]} 11.
fxg6 {[%clk 0:02:48.7]} 11... Nxf1 {[%clk 0:02:59.6]} 12. gxf7+ {[%clk
0:02:49.6]} 12... Ke7 {[%clk 0:02:44.2]} 13. Qg4 {[%clk 0:01:27.3]} 13... Qb6
{[%clk 0:02:18.3]} 14. Qxe6+ {[%clk 0:00:58]} 14... Kd8 {[%clk 0:02:19]} 15.
Bg5+ {[%clk 0:00:59.6]} 15... Kc8 {[%clk 0:02:15.4]} 16. Rxf1 {[%clk 0:00:22.1]}
16... Qxd4+ {[%clk 0:02:12.7]} 17. Kh1 {[%clk 0:00:23.5]} 17... Bd6 {[%clk
0:02:02.9]} 18. Be3 {[%clk 0:00:17.9]} 18... Qe5 {[%clk 0:02:02.2]} 19. Qxe5
{[%clk 0:00:17.4]} 19... Nxe5 {[%clk 0:01:55.3]} 20. Be6+ {[%clk 0:00:13.1]}
20... Kc7 {[%clk 0:01:55.5]} 21. Bd4 {[%clk 0:00:14.8]} 21... h6 {[%clk
0:01:08.8]} 22. Nf4 {[%clk 0:00:06.2]} 22... g5 {[%clk 0:01:08.2]} 23. Bxe5
{[%clk 0:00:05.5]} 23... gxf4 {[%clk 0:00:59.9]} 24. Bxh8 {[%clk 0:00:06.1]}
24... Rxh8 {[%clk 0:01:00.4]} 25. Bb3 {[%clk 0:00:07.3]} 25... h5 {[%clk
0:00:52.6]} 26. Re1 {[%clk 0:00:08.6]} 26... h4 {[%clk 0:00:52]} 27. h3 {[%clk
0:00:10.1]} 27... Kd7 {[%clk 0:00:49.4]} 28. Kg1 {[%clk 0:00:09.7]} 28... Bf8
{[%clk 0:00:45.5]} 29. Kf2 {[%clk 0:00:09.4]} 29... b5 {[%clk 0:00:39.2]} 30.
Kf3 {[%clk 0:00:10]} 30... Bd6 {[%clk 0:00:39.7]} 31. Be6+ {[%clk 0:00:09.6]}
31... Ke7 {[%clk 0:00:36.6]} 32. Bb3+ {[%clk 0:00:08.7]} 32... Kd7 {[%clk
0:00:37.8]} 33. Re4 {[%clk 0:00:07]} 33... a5 {[%clk 0:00:37.9]} 34. a4 {[%clk
0:00:07.8]} 34... Rf8 {[%clk 0:00:35.3]} 35. axb5 {[%clk 0:00:08.2]} 35... cxb5
{[%clk 0:00:35.8]} 36. Be6+ {[%clk 0:00:09.5]} 36... Kc6 {[%clk 0:00:33.2]} 37.
Bb3 {[%clk 0:00:08.4]} 37... Kd7 {[%clk 0:00:34.2]} 38. Ke2 {[%clk 0:00:07.8]}
38... a4 {[%clk 0:00:32.8]} 39. Ba2 {[%clk 0:00:08.6]} 39... Rc8 {[%clk
0:00:32]} 40. c3 {[%clk 0:00:09.1]} 40... Rb8 {[%clk 0:00:28.7]} 41. Be6+ {[%clk
0:00:07.8]} 41... Kc7 {[%clk 0:00:28.6]} 42. Bf5 {[%clk 0:00:06.7]} 42... Rf8
{[%clk 0:00:27.1]} 43. Bg6 {[%clk 0:00:07.1]} 43... Kd7 {[%clk 0:00:27.9]} 44.
Kf3 {[%clk 0:00:05.9]} 44... Be7 {[%clk 0:00:26.4]} 45. Rxf4 {[%clk 0:00:05.7]}
45... Rb8 {[%clk 0:00:27.3]} 0-1

[Event "*** Titled Tuesday Blitz"]
[Site "Chess.com"]
[Date "2019.03.05"]
[Round "4"]
[White "ManuDavid2910"]
[Black "Quiet_Desperation"]
[Result "1-0"]
[WhiteElo "2739"]
[BlackElo "2401"]
[TimeControl "180+2"]
[EndTime "13:57:14 PST"]
[Termination "ManuDavid2910 won by resignation"]

1. e4 {[%clk 0:03:01.9]} 1... Nc6 {[%clk 0:03:01.1]} 2. Nf3 {[%clk 0:03:02.8]}
2... d6 {[%clk 0:03:02.5]} 3. d4 {[%clk 0:03:03.2]} 3... Nf6 {[%clk 0:03:04.1]}
4. Nc3 {[%clk 0:03:04.2]} 4... d5 {[%clk 0:03:05.5]} 5. exd5 {[%clk 0:03:02.5]}
5... Nxd5 {[%clk 0:03:06.7]} 6. Bc4 {[%clk 0:03:03.5]} 6... e6 {[%clk
0:03:03.3]} 7. O-O {[%clk 0:03:04.4]} 7... Be7 {[%clk 0:03:04.7]} 8. Re1 {[%clk
0:03:05.4]} 8... O-O {[%clk 0:03:05.5]} 9. Ne4 {[%clk 0:03:05.9]} 9... Nb6
{[%clk 0:03:06.4]} 10. Bb3 {[%clk 0:03:06.2]} 10... Na5 {[%clk 0:03:03.1]} 11.
Bf4 {[%clk 0:03:03.9]} 11... Nxb3 {[%clk 0:03:04.1]} 12. axb3 {[%clk 0:03:05.8]}
12... Nd5 {[%clk 0:03:03.9]} 13. Bg3 {[%clk 0:03:06.5]} 13... b6 {[%clk
0:03:00.8]} 14. c4 {[%clk 0:03:06.7]} 14... Nf6 {[%clk 0:03:01.4]} 15. Ne5
{[%clk 0:02:47.3]} 15... Bb7 {[%clk 0:03:01]} 16. Ng5 {[%clk 0:02:36.9]} 16...
c5 {[%clk 0:02:46.3]} 17. Qe2 {[%clk 0:02:34.1]} 17... Qe8 {[%clk 0:02:02.3]}
18. d5 {[%clk 0:02:08.5]} 18... exd5 {[%clk 0:01:28.1]} 19. Nexf7 {[%clk
0:02:07.4]} 19... Ne4 {[%clk 0:01:29.3]} 20. Nxe4 {[%clk 0:01:59.4]} 20... dxe4
{[%clk 0:01:15.8]} 21. Ne5 {[%clk 0:01:50.8]} 21... Bf6 {[%clk 0:01:08.5]} 22.
Ng4 {[%clk 0:01:51.5]} 22... Bd4 {[%clk 0:01:07.5]} 23. Rad1 {[%clk 0:01:51.3]}
23... Rd8 {[%clk 0:01:06.4]} 24. h3 {[%clk 0:01:49.1]} 24... Qg6 {[%clk
0:00:48.5]} 25. Kh2 {[%clk 0:01:47.1]} 25... Qg5 {[%clk 0:00:40.4]} 26. Qd2
{[%clk 0:01:27.1]} 26... Qxd2 {[%clk 0:00:33.6]} 27. Rxd2 {[%clk 0:01:29]} 27...
h5 {[%clk 0:00:34.8]} 28. Ne3 {[%clk 0:01:23.8]} 28... h4 {[%clk 0:00:35.5]} 29.
Bc7 {[%clk 0:01:23]} 29... Be5+ {[%clk 0:00:34]} 30. Bxe5 {[%clk 0:01:21.8]}
30... Rxd2 {[%clk 0:00:35.2]} 31. Ng4 {[%clk 0:01:22.3]} 31... Re8 {[%clk
0:00:26.7]} 32. Bc3 {[%clk 0:01:22.6]} 32... Rd3 {[%clk 0:00:27.9]} 33. Ne3
{[%clk 0:01:10.2]} 33... Rf8 {[%clk 0:00:22.8]} 34. Kg1 {[%clk 0:01:10.8]} 34...
Rfd8 {[%clk 0:00:21.7]} 35. Re2 {[%clk 0:01:09.1]} 35... a6 {[%clk 0:00:21.4]}
36. Nf5 {[%clk 0:01:09]} 36... b5 {[%clk 0:00:18.4]} 37. Bxg7 {[%clk 0:01:00.9]}
37... Rxb3 {[%clk 0:00:18.5]} 38. cxb5 {[%clk 0:00:57.2]} 38... axb5 {[%clk
0:00:19.3]} 39. Be5 {[%clk 0:00:52.2]} 39... Rd5 {[%clk 0:00:19.5]} 40. Ne7+
{[%clk 0:00:51.8]} 40... Kf7 {[%clk 0:00:20.9]} 41. Nxd5 {[%clk 0:00:52.2]}
41... Bxd5 {[%clk 0:00:22.6]} 42. Rc2 {[%clk 0:00:52]} 42... Bc4 {[%clk
0:00:21.5]} 43. Bd6 {[%clk 0:00:51.8]} 43... e3 {[%clk 0:00:19.2]} 44. fxe3
{[%clk 0:00:51.8]} 44... Rxe3 {[%clk 0:00:20.5]} 45. Bxc5 {[%clk 0:00:52.8]}
45... Re2 {[%clk 0:00:21.3]} 46. Rxe2 {[%clk 0:00:51.4]} 46... Bxe2 {[%clk
0:00:22.5]} 47. Bf2 {[%clk 0:00:52.8]} 47... Kg6 {[%clk 0:00:23.2]} 48. Bxh4
{[%clk 0:00:54.1]} 48... Bd3 {[%clk 0:00:24.4]} 49. Kf2 {[%clk 0:00:54.5]} 49...
Bc4 {[%clk 0:00:25.8]} 50. Ke3 {[%clk 0:00:55.5]} 50... Bf1 {[%clk 0:00:26.8]}
51. Kf2 {[%clk 0:00:56.3]} 51... Bc4 {[%clk 0:00:27.9]} 52. Bg3 {[%clk
0:00:57.6]} 52... Bd5 {[%clk 0:00:28.7]} 53. Be5 {[%clk 0:00:58.3]} 53... Kf5
{[%clk 0:00:29.4]} 54. Bd4 {[%clk 0:00:56.7]} 54... Kg6 {[%clk 0:00:30.5]} 55.
b4 {[%clk 0:00:55.8]} 55... Bc4 {[%clk 0:00:31.4]} 56. g4 {[%clk 0:00:56.7]}
56... Bd3 {[%clk 0:00:32.3]} 57. Kg3 {[%clk 0:00:57.6]} 57... Bf1 {[%clk
0:00:33]} 58. h4 {[%clk 0:00:58.6]} 58... Bd3 {[%clk 0:00:34.2]} 59. h5+ {[%clk
0:00:59.1]} 59... Kh7 {[%clk 0:00:36.1]} 60. g5 {[%clk 0:00:59.6]} 60... Be2
{[%clk 0:00:37.5]} 61. Kh4 {[%clk 0:00:55.5]} 61... Bd3 {[%clk 0:00:37.2]} 62.
g6+ {[%clk 0:00:56.5]} 1-0

[Event "*** Titled Tuesday Blitz"]
[Site "Chess.com"]
[Date "2019.03.05"]
[Round "4"]
[White "moro182"]
[Black "vugarrasulov"]
[Result "0-1"]
[WhiteElo "2807"]
[BlackElo "2751"]
[TimeControl "180+2"]
[EndTime "13:57:31 PST"]
[Termination "vugarrasulov won by resignation"]

1. d4 {[%clk 0:03:01.9]} 1... Nf6 {[%clk 0:03:00.5]} 2. Bf4 {[%clk 0:03:02.2]}
2... g6 {[%clk 0:03:00.9]} 3. Nc3 {[%clk 0:03:02.6]} 3... d5 {[%clk 0:03:01.6]}
4. e3 {[%clk 0:03:04.1]} 4... a6 {[%clk 0:02:59.3]} 5. Nf3 {[%clk 0:03:03.9]}
5... Bg7 {[%clk 0:03:00.2]} 6. Bd3 {[%clk 0:03:04.3]} 6... O-O {[%clk
0:03:00.7]} 7. h3 {[%clk 0:03:05.7]} 7... Nbd7 {[%clk 0:02:55.1]} 8. O-O {[%clk
0:03:02.7]} 8... c5 {[%clk 0:02:56]} 9. dxc5 {[%clk 0:02:58.8]} 9... Nxc5 {[%clk
0:02:56.6]} 10. Qe2 {[%clk 0:02:54.4]} 10... Nfe4 {[%clk 0:02:46.1]} 11. Bxe4
{[%clk 0:02:29.4]} 11... Nxe4 {[%clk 0:02:46.7]} 12. Nxe4 {[%clk 0:02:21.5]}
12... dxe4 {[%clk 0:02:48.6]} 13. Ne5 {[%clk 0:02:19.8]} 13... Be6 {[%clk
0:02:46.6]} 14. Rfd1 {[%clk 0:02:16.1]} 14... Qa5 {[%clk 0:02:41.1]} 15. Ng4
{[%clk 0:02:03.4]} 15... h5 {[%clk 0:02:35]} 16. Nh2 {[%clk 0:02:00.7]} 16...
Qb5 {[%clk 0:02:31.1]} 17. Qxb5 {[%clk 0:01:55.5]} 17... axb5 {[%clk 0:02:33]}
18. c3 {[%clk 0:01:52.7]} 18... b4 {[%clk 0:02:22.1]} 19. cxb4 {[%clk
0:01:52.2]} 19... Bxb2 {[%clk 0:02:21.8]} 20. Rab1 {[%clk 0:01:52.3]} 20... Rxa2
{[%clk 0:02:21.9]} 21. Nf1 {[%clk 0:01:40.2]} 21... Bf6 {[%clk 0:02:16.6]} 22.
Ng3 {[%clk 0:01:15.9]} 22... Bh4 {[%clk 0:01:46.9]} 23. Rbc1 {[%clk 0:00:58.8]}
23... g5 {[%clk 0:01:33.7]} 24. Be5 {[%clk 0:00:56.1]} 24... f6 {[%clk
0:01:32.6]} 25. Bc7 {[%clk 0:00:56.6]} 25... f5 {[%clk 0:01:17]} 26. Nh1 {[%clk
0:00:37.8]} 26... f4 {[%clk 0:01:09.1]} 27. Ra1 {[%clk 0:00:33.5]} 27... Rc2
{[%clk 0:01:05.3]} 28. Rac1 {[%clk 0:00:22.3]} 28... Rb2 {[%clk 0:01:01.2]} 29.
Be5 {[%clk 0:00:19.6]} 29... Ra2 {[%clk 0:00:55.5]} 30. Ra1 {[%clk 0:00:17.1]}
30... Rxa1 {[%clk 0:00:43.4]} 31. Rxa1 {[%clk 0:00:19]} 31... fxe3 {[%clk
0:00:43.8]} 32. fxe3 {[%clk 0:00:17]} 32... g4 {[%clk 0:00:42.9]} 33. hxg4
{[%clk 0:00:13.6]} 33... hxg4 {[%clk 0:00:42]} 34. Bf4 {[%clk 0:00:09.5]} 34...
Rc8 {[%clk 0:00:35.3]} 35. Ng3 {[%clk 0:00:08.7]} 35... Rc4 {[%clk 0:00:30.8]}
36. b5 {[%clk 0:00:08.1]} 36... Rb4 {[%clk 0:00:25.6]} 37. b6 {[%clk 0:00:06]}
37... Bxg3 {[%clk 0:00:26.1]} 38. Bxg3 {[%clk 0:00:07.9]} 38... Rxb6 {[%clk
0:00:27.2]} 39. Be5 {[%clk 0:00:08.1]} 39... Rb3 {[%clk 0:00:26.6]} 40. Kf2
{[%clk 0:00:08.3]} 40... Rd3 {[%clk 0:00:23.1]} 41. Rb1 {[%clk 0:00:07.5]} 41...
Bd5 {[%clk 0:00:22.8]} 42. Rb6 {[%clk 0:00:07.9]} 42... Kf7 {[%clk 0:00:23.6]}
43. Bd4 {[%clk 0:00:09]} 43... Bc6 {[%clk 0:00:24.7]} 44. Kg3 {[%clk 0:00:10.1]}
44... Ke6 {[%clk 0:00:23.3]} 45. Kxg4 {[%clk 0:00:10]} 45... Kd5 {[%clk
0:00:25]} 46. Kf4 {[%clk 0:00:08.6]} 46... Rd2 {[%clk 0:00:25.7]} 47. g4 {[%clk
0:00:09.2]} 47... e5+ {[%clk 0:00:26]} 48. Bxe5 {[%clk 0:00:09.9]} 48... Rf2+
{[%clk 0:00:27.6]} 49. Kg3 {[%clk 0:00:11.4]} 49... Rf3+ {[%clk 0:00:28.9]} 50.
Kg2 {[%clk 0:00:12.6]} 50... Kxe5 {[%clk 0:00:30.6]} 51. Rb3 {[%clk 0:00:12]}
51... Bd5 {[%clk 0:00:30.6]} 52. Rc3 {[%clk 0:00:12.1]} 52... b5 {[%clk
0:00:31.9]} 53. g5 {[%clk 0:00:12.1]} 53... Rf5 {[%clk 0:00:32.9]} 54. g6 {[%clk
0:00:12]} 54... Rg5+ {[%clk 0:00:33.7]} 0-1

[Event "*** Titled Tuesday Blitz"]
[Site "Chess.com"]
[Date "2019.03.05"]
[Round "4"]
[White "MatthewG-p4p"]
[Black "JonahWillow"]
[Result "0-1"]
[WhiteElo "2663"]
[BlackElo "2668"]
[TimeControl "180+2"]
[EndTime "13:57:32 PST"]
[Termination "JonahWillow won by resignation"]

1. c4 {[%clk 0:02:58.6]} 1... c5 {[%clk 0:03:00.2]} 2. Nc3 {[%clk 0:02:59.1]}
2... Nc6 {[%clk 0:03:01]} 3. g3 {[%clk 0:03:00.5]} 3... g6 {[%clk 0:03:02.3]} 4.
Bg2 {[%clk 0:03:02]} 4... Bg7 {[%clk 0:03:03.7]} 5. d3 {[%clk 0:03:03.3]} 5...
e6 {[%clk 0:03:04.4]} 6. e4 {[%clk 0:02:52.6]} 6... Nge7 {[%clk 0:02:59.7]} 7.
Nge2 {[%clk 0:02:53.3]} 7... O-O {[%clk 0:02:51.9]} 8. O-O {[%clk 0:02:53.6]}
8... d6 {[%clk 0:02:53.2]} 9. Be3 {[%clk 0:02:49.6]} 9... Nd4 {[%clk 0:02:53.1]}
10. Qd2 {[%clk 0:02:49.7]} 10... Nec6 {[%clk 0:02:52.5]} 11. Rab1 {[%clk
0:02:45.2]} 11... b6 {[%clk 0:02:43.8]} 12. a3 {[%clk 0:02:44.4]} 12... a5
{[%clk 0:02:09.9]} 13. f4 {[%clk 0:02:30.2]} 13... Bb7 {[%clk 0:01:48.2]} 14.
Kh1 {[%clk 0:02:00.7]} 14... Rb8 {[%clk 0:01:43.2]} 15. Ng1 {[%clk 0:01:57.5]}
15... Qd7 {[%clk 0:01:36.9]} 16. g4 {[%clk 0:01:56.1]} 16... f5 {[%clk
0:01:35.1]} 17. exf5 {[%clk 0:01:55.7]} 17... exf5 {[%clk 0:01:32.8]} 18. g5
{[%clk 0:01:56.5]} 18... Kh8 {[%clk 0:01:31.7]} 19. h4 {[%clk 0:01:57.5]} 19...
Rfe8 {[%clk 0:01:29.7]} 20. Rbe1 {[%clk 0:01:57.6]} 20... Re6 {[%clk 0:01:24.3]}
21. Nd5 {[%clk 0:01:55.1]} 21... Ba8 {[%clk 0:01:12.1]} 22. b4 {[%clk
0:01:55.7]} 22... axb4 {[%clk 0:01:10.4]} 23. axb4 {[%clk 0:01:57.6]} 23... cxb4
{[%clk 0:01:07.9]} 24. Nxb4 {[%clk 0:01:39.9]} 24... Nxb4 {[%clk 0:01:03.5]} 25.
Bxd4 {[%clk 0:01:35.2]} 25... Bxd4 {[%clk 0:00:58.8]} 26. Qxb4 {[%clk
0:01:35.9]} 26... Bxg2+ {[%clk 0:00:55.8]} 27. Kxg2 {[%clk 0:01:37.8]} 27...
Rbe8 {[%clk 0:00:54.5]} 28. Nf3 {[%clk 0:01:35]} 28... Re2+ {[%clk 0:00:42.6]}
29. Rxe2 {[%clk 0:01:18.6]} 29... Rxe2+ {[%clk 0:00:44.5]} 30. Kg3 {[%clk
0:01:05.8]} 30... Re3 {[%clk 0:00:42.7]} 31. Re1 {[%clk 0:01:01.7]} 31... Qe6
{[%clk 0:00:36.6]} 32. Rxe3 {[%clk 0:00:59.3]} 32... Qxe3 {[%clk 0:00:38.5]} 33.
Qd2 {[%clk 0:00:59.1]} 33... Qxd2 {[%clk 0:00:35.6]} 34. Nxd2 {[%clk 0:01:01]}
34... Kg7 {[%clk 0:00:37.5]} 35. Nb3 {[%clk 0:00:53]} 35... Bc3 {[%clk
0:00:36.1]} 36. Nc1 {[%clk 0:00:50.4]} 36... Be1+ {[%clk 0:00:34.7]} 37. Kh3
{[%clk 0:00:51.5]} 37... Kf7 {[%clk 0:00:35.9]} 38. Ne2 {[%clk 0:00:51.2]} 38...
Ke6 {[%clk 0:00:33.9]} 39. Nd4+ {[%clk 0:00:52.1]} 39... Kd7 {[%clk 0:00:35.4]}
40. Nc2 {[%clk 0:00:51.9]} 40... Bd2 {[%clk 0:00:35.2]} 41. Kg3 {[%clk
0:00:53.2]} 41... Ke6 {[%clk 0:00:33.5]} 42. h5 {[%clk 0:00:53.1]} 42... d5
{[%clk 0:00:31.3]} 43. h6 {[%clk 0:00:40.7]} 43... Bc3 {[%clk 0:00:27.3]} 44.
Kf3 {[%clk 0:00:40.1]} 44... Kd6 {[%clk 0:00:25.8]} 45. Ne3 {[%clk 0:00:24.5]}
45... dxc4 {[%clk 0:00:23.5]} 46. dxc4 {[%clk 0:00:10]} 46... Kc5 {[%clk
0:00:23.9]} 47. Nd5 {[%clk 0:00:11.4]} 47... Bb2 {[%clk 0:00:20.5]} 48. Nf6
{[%clk 0:00:12]} 48... Bxf6 {[%clk 0:00:18.4]} 49. gxf6 {[%clk 0:00:13.2]} 49...
Kd6 {[%clk 0:00:20.3]} 50. Ke3 {[%clk 0:00:14.7]} 50... Ke6 {[%clk 0:00:19.1]}
51. Kd4 {[%clk 0:00:12.8]} 51... Kxf6 {[%clk 0:00:20.5]} 0-1